[Event "*** Titled Tuesday Blitz"]
[Site "Chess.com"]
[Date "2021.04.27"]
[Round "3"]
[White "DarZay"]
[Black "bricolageur"]
[Result "1-0"]
[WhiteElo "2177"]
[BlackElo "2314"]
[TimeControl "180+1"]
[EndTime "10:28:40 PDT"]
[Termination "DarZay won by checkmate"]

1. e4 {[%clk 0:03:00.9]} 1... e5 {[%clk 0:02:59.6]} 2. Nf3 {[%clk 0:03:00.9]}
2... Nc6 {[%clk 0:03:00.3]} 3. Bc4 {[%clk 0:03:00.4]} 3... Nf6 {[%clk
0:03:00.1]} 4. d3 {[%clk 0:02:59.6]} 4... h6 {[%clk 0:02:58.9]} 5. c3 {[%clk
0:02:58.8]} 5... d6 {[%clk 0:02:58.2]} 6. h3 {[%clk 0:02:51.4]} 6... g5 {[%clk
0:02:57.5]} 7. Be3 {[%clk 0:02:50.4]} 7... Bg7 {[%clk 0:02:57.1]} 8. Nbd2 {[%clk
0:02:49.9]} 8... O-O {[%clk 0:02:53]} 9. b4 {[%clk 0:02:48.9]} 9... Ne7 {[%clk
0:02:42.6]} 10. Nh2 {[%clk 0:02:46.9]} 10... d5 {[%clk 0:02:40.2]} 11. exd5
{[%clk 0:02:45.9]} 11... Nfxd5 {[%clk 0:02:38.3]} 12. h4 {[%clk 0:02:35.9]}
12... Nxc3 {[%clk 0:02:35.4]} 13. Qh5 {[%clk 0:02:30.2]} 13... b5 {[%clk
0:02:14.9]} 14. Bb3 {[%clk 0:01:53.7]} 14... Qxd3 {[%clk 0:02:14.2]} 15. hxg5
{[%clk 0:01:53.8]} 15... hxg5 {[%clk 0:01:37.9]} 16. Bxg5 {[%clk 0:01:35.2]}
16... Nf5 {[%clk 0:01:17.7]} 17. Nhf1 {[%clk 0:01:32.2]} 17... Nd4 {[%clk
0:01:17.4]} 18. Ng3 {[%clk 0:01:14]} 18... Bb7 {[%clk 0:00:51.8]} 19. Rh3 {[%clk
0:01:06.4]} 19... Nxb3 {[%clk 0:00:43.5]} 20. axb3 {[%clk 0:00:45.1]} 20... Qg6
{[%clk 0:00:39.3]} 21. Qh4 {[%clk 0:00:41]} 21... Bxg2 {[%clk 0:00:35.4]} 22.
Rh2 {[%clk 0:00:40.8]} 22... Bb7 {[%clk 0:00:31.2]} 23. Rc1 {[%clk 0:00:37.5]}
23... e4 {[%clk 0:00:19.7]} 24. Nh5 {[%clk 0:00:33.3]} 24... Nd5 {[%clk
0:00:09.1]} 25. Rc5 {[%clk 0:00:30.6]} 25... f6 {[%clk 0:00:07.5]} 26. Nxg7
{[%clk 0:00:23.7]} 26... Qxg7 {[%clk 0:00:06.3]} 27. Bh6 {[%clk 0:00:20.4]}
27... Qg1+ {[%clk 0:00:06]} 28. Nf1 {[%clk 0:00:18]} 28... Rf7 {[%clk
0:00:04.5]} 29. Rh3 {[%clk 0:00:14]} 29... Qg6 {[%clk 0:00:02.2]} 30. Rg3 {[%clk
0:00:13.9]} 30... Qxg3 {[%clk 0:00:01.8]} 31. Qxg3+ {[%clk 0:00:14.1]} 31... Kh7
{[%clk 0:00:02.7]} 32. Qh4 {[%clk 0:00:11.8]} 32... Kg6 {[%clk 0:00:02.6]} 33.
Ne3 {[%clk 0:00:11.2]} 33... Rh7 {[%clk 0:00:02.8]} 34. Nxd5 {[%clk 0:00:10.3]}
34... Rxh6 {[%clk 0:00:02.3]} 35. Ne7+ {[%clk 0:00:09]} 35... Kh7 {[%clk
0:00:02]} 36. Qg4 {[%clk 0:00:06.8]} 36... Re8 {[%clk 0:00:02.2]} 37. Rxc7
{[%clk 0:00:06.2]} 37... Kh8 {[%clk 0:00:02.7]} 38. Rxb7 {[%clk 0:00:05.7]}
38... Rh1+ {[%clk 0:00:02.8]} 39. Ke2 {[%clk 0:00:05.5]} 39... Rh7 {[%clk
0:00:03.7]} 40. Ng6+ {[%clk 0:00:04.9]} 40... Kg8 {[%clk 0:00:03.4]} 41. Ne5+
{[%clk 0:00:03.6]} 41... Kh8 {[%clk 0:00:02.5]} 42. Rxh7+ {[%clk 0:00:03.3]}
42... Kxh7 {[%clk 0:00:02.7]} 43. Qg6+ {[%clk 0:00:03.5]} 43... Kh8 {[%clk
0:00:03.6]} 44. Nf7# {[%clk 0:00:03.9]} 1-0

[Event "*** Titled Tuesday Blitz"]
[Site "Chess.com"]
[Date "2021.04.27"]
[Round "3"]
[White "northridgehawk"]
[Black "elcandado"]
[Result "1-0"]
[WhiteElo "2331"]
[BlackElo "2632"]
[TimeControl "180+1"]
[EndTime "10:28:42 PDT"]
[Termination "northridgehawk won by checkmate"]

1. e4 {[%clk 0:03:00.9]} 1... e5 {[%clk 0:02:59.7]} 2. Nf3 {[%clk 0:02:59.9]}
2... Nc6 {[%clk 0:02:59.5]} 3. g3 {[%clk 0:02:58.4]} 3... Bc5 {[%clk 0:02:57.9]}
4. Bg2 {[%clk 0:02:56.3]} 4... d6 {[%clk 0:02:58.2]} 5. O-O {[%clk 0:02:54.8]}
5... Nf6 {[%clk 0:02:55.6]} 6. d3 {[%clk 0:02:54.3]} 6... h6 {[%clk 0:02:54.6]}
7. c3 {[%clk 0:02:52.6]} 7... a6 {[%clk 0:02:53.1]} 8. a4 {[%clk 0:02:51.5]}
8... Ba7 {[%clk 0:02:52.3]} 9. Nbd2 {[%clk 0:02:47.8]} 9... O-O {[%clk
0:02:50.2]} 10. b4 {[%clk 0:02:47]} 10... Ne7 {[%clk 0:02:46.9]} 11. Bb2 {[%clk
0:02:42.7]} 11... Ng6 {[%clk 0:02:46.5]} 12. d4 {[%clk 0:02:30.9]} 12... Qe7
{[%clk 0:02:45.3]} 13. Re1 {[%clk 0:02:27.8]} 13... Nh7 {[%clk 0:02:41.4]} 14.
Nc4 {[%clk 0:02:17.9]} 14... Ng5 {[%clk 0:02:40]} 15. Nxg5 {[%clk 0:02:10.8]}
15... hxg5 {[%clk 0:02:40.9]} 16. Ne3 {[%clk 0:02:09.9]} 16... c6 {[%clk
0:02:36.2]} 17. Qh5 {[%clk 0:02:02]} 17... Qf6 {[%clk 0:02:29]} 18. b5 {[%clk
0:01:49.8]} 18... Bd7 {[%clk 0:02:11.4]} 19. Rad1 {[%clk 0:01:45]} 19... Rfd8
{[%clk 0:02:08.1]} 20. Rd2 {[%clk 0:01:15.8]} 20... cxb5 {[%clk 0:02:04.6]} 21.
Nd5 {[%clk 0:01:14.8]} 21... Qe6 {[%clk 0:01:56.7]} 22. Nc7 {[%clk 0:01:08.3]}
22... Qf6 {[%clk 0:01:55.6]} 23. Nxa8 {[%clk 0:01:07.5]} 23... Rxa8 {[%clk
0:01:56.5]} 24. dxe5 {[%clk 0:01:02.8]} 24... Nxe5 {[%clk 0:01:55.2]} 25. Qd1
{[%clk 0:00:57.9]} 25... Bc5 {[%clk 0:01:52.2]} 26. h3 {[%clk 0:00:55.4]} 26...
bxa4 {[%clk 0:01:48.4]} 27. c4 {[%clk 0:00:54.6]} 27... Bc6 {[%clk 0:01:36.3]}
28. Bc3 {[%clk 0:00:40.9]} 28... b5 {[%clk 0:01:31.9]} 29. cxb5 {[%clk
0:00:38.2]} 29... axb5 {[%clk 0:01:32.8]} 30. Kh1 {[%clk 0:00:32.1]} 30... b4
{[%clk 0:01:28.7]} 31. Ba1 {[%clk 0:00:31.9]} 31... b3 {[%clk 0:01:22.1]} 32.
Rf1 {[%clk 0:00:29.3]} 32... Qe6 {[%clk 0:01:12.2]} 33. f4 {[%clk 0:00:27.9]}
33... gxf4 {[%clk 0:01:10.2]} 34. gxf4 {[%clk 0:00:28.8]} 34... Nc4 {[%clk
0:01:09.9]} 35. f5 {[%clk 0:00:18.9]} 35... Qh6 {[%clk 0:01:08.8]} 36. Re2
{[%clk 0:00:17.5]} 36... Ne3 {[%clk 0:00:56.3]} 37. Rxe3 {[%clk 0:00:17.3]}
37... Qxe3 {[%clk 0:00:53.5]} 38. Rf3 {[%clk 0:00:18.2]} 38... Qh6 {[%clk
0:00:50]} 39. Rg3 {[%clk 0:00:17.9]} 39... Rb8 {[%clk 0:00:30.4]} 40. Bxg7
{[%clk 0:00:15.7]} 40... Qxg7 {[%clk 0:00:29.2]} 41. Rxg7+ {[%clk 0:00:16.6]}
41... Kxg7 {[%clk 0:00:29.7]} 42. Qg4+ {[%clk 0:00:17.1]} 42... Kf8 {[%clk
0:00:28.9]} 43. f6 {[%clk 0:00:15.8]} 43... d5 {[%clk 0:00:17.4]} 44. Qg7+
{[%clk 0:00:16.7]} 44... Ke8 {[%clk 0:00:17.3]} 45. exd5 {[%clk 0:00:16.4]}
45... b2 {[%clk 0:00:16.3]} 46. dxc6 {[%clk 0:00:15.7]} 46... b1=Q+ {[%clk
0:00:15.7]} 47. Kh2 {[%clk 0:00:15.1]} 47... Qg6 {[%clk 0:00:15]} 48. Qh8+
{[%clk 0:00:14.1]} 48... Bf8 {[%clk 0:00:14.4]} 49. c7 {[%clk 0:00:13.6]} 49...
Qb1 {[%clk 0:00:05.9]} 50. Bc6# {[%clk 0:00:13.1]} 1-0

[Event "*** Titled Tuesday Blitz"]
[Site "Chess.com"]
[Date "2021.04.27"]
[Round "3"]
[White "Cambek64"]
[Black "malakismayil"]
[Result "1-0"]
[WhiteElo "2489"]
[BlackElo "2266"]
[TimeControl "180+1"]
[EndTime "10:28:42 PDT"]
[Termination "Cambek64 won on time"]

1. e4 {[%clk 0:02:58.8]} 1... e5 {[%clk 0:02:59.2]} 2. Nf3 {[%clk 0:02:57.5]}
2... Nc6 {[%clk 0:02:59.6]} 3. Bb5 {[%clk 0:02:56.7]} 3... Bc5 {[%clk
0:02:57.8]} 4. O-O {[%clk 0:02:55.6]} 4... d6 {[%clk 0:02:55.7]} 5. d3 {[%clk
0:02:55.4]} 5... Nf6 {[%clk 0:02:53.9]} 6. Be3 {[%clk 0:02:54.1]} 6... Bb6
{[%clk 0:02:52]} 7. a4 {[%clk 0:02:51.1]} 7... Bd7 {[%clk 0:02:36.1]} 8. Bxc6
{[%clk 0:02:43.3]} 8... Bxc6 {[%clk 0:02:34.1]} 9. a5 {[%clk 0:02:43.9]} 9...
Bxe3 {[%clk 0:02:33.3]} 10. fxe3 {[%clk 0:02:44.7]} 10... Qe7 {[%clk 0:02:30.1]}
11. Qe1 {[%clk 0:02:43.5]} 11... a6 {[%clk 0:02:16.3]} 12. c4 {[%clk 0:02:41.9]}
12... h6 {[%clk 0:01:48.3]} 13. Nh4 {[%clk 0:02:37.9]} 13... Bd7 {[%clk
0:01:43.3]} 14. Nc3 {[%clk 0:02:37]} 14... Be6 {[%clk 0:01:41.1]} 15. h3 {[%clk
0:02:33.5]} 15... Nd7 {[%clk 0:01:32.8]} 16. Nf5 {[%clk 0:02:29.4]} 16... Bxf5
{[%clk 0:01:31.8]} 17. Nd5 {[%clk 0:02:28.8]} 17... Qd8 {[%clk 0:01:28.9]} 18.
Rxf5 {[%clk 0:02:28]} 18... c6 {[%clk 0:01:28.9]} 19. Nc3 {[%clk 0:02:23.1]}
19... Qe7 {[%clk 0:01:22.9]} 20. Qg3 {[%clk 0:02:17.8]} 20... g6 {[%clk
0:01:19]} 21. Rf3 {[%clk 0:02:16.3]} 21... O-O-O {[%clk 0:01:15.9]} 22. Qf2
{[%clk 0:02:08]} 22... Rdf8 {[%clk 0:01:15]} 23. Rf1 {[%clk 0:02:06.2]} 23... f6
{[%clk 0:01:11.8]} 24. b4 {[%clk 0:02:01.3]} 24... d5 {[%clk 0:00:42.7]} 25. b5
{[%clk 0:01:45.8]} 25... Qb4 {[%clk 0:00:35.4]} 26. bxc6 {[%clk 0:01:44.5]}
26... bxc6 {[%clk 0:00:32.8]} 27. Qc2 {[%clk 0:01:40.3]} 27... d4 {[%clk
0:00:24.3]} 28. Na4 {[%clk 0:01:31.6]} 28... Qxa5 {[%clk 0:00:21.4]} 29. exd4
{[%clk 0:01:19.6]} 29... exd4 {[%clk 0:00:22.3]} 30. Qb3 {[%clk 0:01:14.4]}
30... Kc7 {[%clk 0:00:20.8]} 31. c5 {[%clk 0:01:01.8]} 31... Rb8 {[%clk
0:00:19.5]} 32. Qc2 {[%clk 0:00:42.4]} 32... Qb4 {[%clk 0:00:19.1]} 33. Nb6
{[%clk 0:00:40.2]} 33... Qxc5 {[%clk 0:00:12.7]} 34. Qxc5 {[%clk 0:00:35.6]}
34... Nxc5 {[%clk 0:00:13.6]} 35. Nc4 {[%clk 0:00:33.4]} 35... Nd7 {[%clk
0:00:14.1]} 36. Ra1 {[%clk 0:00:32.3]} 36... Ra8 {[%clk 0:00:13.3]} 37. Ra5
{[%clk 0:00:31.3]} 37... Rhb8 {[%clk 0:00:12.9]} 38. e5 {[%clk 0:00:26.6]} 38...
fxe5 {[%clk 0:00:11]} 39. Rf7 {[%clk 0:00:23.9]} 39... Rf8 {[%clk 0:00:03.3]}
40. Rg7 {[%clk 0:00:21.5]} 40... Rg8 {[%clk 0:00:03]} 41. Rxg8 {[%clk
0:00:11.9]} 41... Rxg8 {[%clk 0:00:02]} 42. Rxa6 {[%clk 0:00:12.7]} 42... Ra8
{[%clk 0:00:02.5]} 43. Rxa8 {[%clk 0:00:12.1]} 1-0

[Event "*** Titled Tuesday Blitz"]
[Site "Chess.com"]
[Date "2021.04.27"]
[Round "3"]
[White "Das_Virus_2020"]
[Black "OK97"]
[Result "0-1"]
[WhiteElo "2518"]
[BlackElo "2746"]
[TimeControl "180+1"]
[EndTime "10:28:44 PDT"]
[Termination "OK97 won on time"]

1. e4 {[%clk 0:03:00.9]} 1... g6 {[%clk 0:02:59.9]} 2. d4 {[%clk 0:03:00.1]}
2... Bg7 {[%clk 0:03:00.4]} 3. Nc3 {[%clk 0:03:00.7]} 3... c6 {[%clk 0:03:00.8]}
4. Nf3 {[%clk 0:02:56.9]} 4... d5 {[%clk 0:03:00.8]} 5. Bf4 {[%clk 0:02:54.9]}
5... Bg4 {[%clk 0:02:38.2]} 6. exd5 {[%clk 0:02:52]} 6... cxd5 {[%clk
0:02:37.8]} 7. Nb5 {[%clk 0:02:52]} 7... Na6 {[%clk 0:02:31.4]} 8. c3 {[%clk
0:02:51.6]} 8... Nf6 {[%clk 0:02:28.8]} 9. h3 {[%clk 0:02:51.8]} 9... Bxf3
{[%clk 0:02:19.4]} 10. Qxf3 {[%clk 0:02:51]} 10... O-O {[%clk 0:02:20.1]} 11.
Bd3 {[%clk 0:02:50.9]} 11... Qd7 {[%clk 0:02:13.7]} 12. O-O {[%clk 0:02:46]}
12... Ne4 {[%clk 0:02:09.8]} 13. a4 {[%clk 0:02:36.7]} 13... f5 {[%clk
0:02:06.7]} 14. Qe2 {[%clk 0:02:27.3]} 14... e6 {[%clk 0:01:45.9]} 15. f3 {[%clk
0:02:21.7]} 15... Nf6 {[%clk 0:01:45.8]} 16. Rfe1 {[%clk 0:02:19]} 16... Rfe8
{[%clk 0:01:39.6]} 17. g4 {[%clk 0:01:59.4]} 17... Bf8 {[%clk 0:01:09.7]} 18.
Be5 {[%clk 0:01:48.3]} 18... Qf7 {[%clk 0:01:09.6]} 19. Kg2 {[%clk 0:01:41.8]}
19... Nd7 {[%clk 0:01:07]} 20. Nd6 {[%clk 0:01:12.8]} 20... Bxd6 {[%clk
0:01:05.9]} 21. Bxd6 {[%clk 0:01:13.7]} 21... Nab8 {[%clk 0:01:02.2]} 22. Qe3
{[%clk 0:01:10.9]} 22... Nc6 {[%clk 0:01:01.2]} 23. Qh6 {[%clk 0:01:08.7]} 23...
Nf6 {[%clk 0:00:54.1]} 24. Qh4 {[%clk 0:00:56.9]} 24... Rad8 {[%clk 0:00:53.3]}
25. Bf4 {[%clk 0:00:54.2]} 25... Nd7 {[%clk 0:00:37.9]} 26. Bg5 {[%clk
0:00:41.3]} 26... Rc8 {[%clk 0:00:36.9]} 27. Rg1 {[%clk 0:00:34.5]} 27... f4
{[%clk 0:00:33.4]} 28. Qh6 {[%clk 0:00:31.5]} 28... e5 {[%clk 0:00:33.8]} 29.
dxe5 {[%clk 0:00:23.6]} 29... Ndxe5 {[%clk 0:00:34.7]} 30. Bb5 {[%clk
0:00:21.9]} 30... Rf8 {[%clk 0:00:23.2]} 31. Rge1 {[%clk 0:00:20.8]} 31... a6
{[%clk 0:00:19.7]} 32. Bxc6 {[%clk 0:00:20.2]} 32... Nxc6 {[%clk 0:00:20.6]} 33.
Rad1 {[%clk 0:00:19.2]} 33... d4 {[%clk 0:00:19.8]} 34. cxd4 {[%clk 0:00:17.3]}
34... Rce8 {[%clk 0:00:15.9]} 35. d5 {[%clk 0:00:14.9]} 35... Ne5 {[%clk
0:00:12.5]} 36. Re4 {[%clk 0:00:12.6]} 36... Nxf3 {[%clk 0:00:11.4]} 37. Kxf3
{[%clk 0:00:10.8]} 37... Rxe4 {[%clk 0:00:09.2]} 38. Kxe4 {[%clk 0:00:10.9]}
38... Qe8+ {[%clk 0:00:07.1]} 39. Kf3 {[%clk 0:00:03.6]} 39... Qe3+ {[%clk
0:00:07.4]} 40. Kg2 {[%clk 0:00:03.6]} 40... Qe2+ {[%clk 0:00:07.4]} 41. Kh1
{[%clk 0:00:02.4]} 41... Qxd1+ {[%clk 0:00:07.5]} 42. Kh2 {[%clk 0:00:02.8]}
42... Qe2+ {[%clk 0:00:07.4]} 43. Kh1 {[%clk 0:00:02.7]} 43... Qf1+ {[%clk
0:00:05.9]} 44. Kh2 {[%clk 0:00:02.6]} 44... Qf2+ {[%clk 0:00:06.5]} 45. Kh1
{[%clk 0:00:02.8]} 45... f3 {[%clk 0:00:07.2]} 0-1

[Event "*** Titled Tuesday Blitz"]
[Site "Chess.com"]
[Date "2021.04.27"]
[Round "3"]
[White "ChadBiryani"]
[Black "TengisChess"]
[Result "0-1"]
[WhiteElo "2295"]
[BlackElo "2558"]
[TimeControl "180+1"]
[EndTime "10:28:44 PDT"]
[Termination "TengisChess won on time"]

1. d4 {[%clk 0:03:00.9]} 1... d6 {[%clk 0:02:57.9]} 2. Bg5 {[%clk 0:02:56.7]}
2... c6 {[%clk 0:02:57]} 3. Nf3 {[%clk 0:02:55.6]} 3... Bg4 {[%clk 0:02:53.4]}
4. Nc3 {[%clk 0:02:53.6]} 4... Qb6 {[%clk 0:02:51.9]} 5. Rb1 {[%clk 0:02:53.2]}
5... Nf6 {[%clk 0:02:50.7]} 6. e3 {[%clk 0:02:49.2]} 6... Qa5 {[%clk 0:02:43.6]}
7. Bxf6 {[%clk 0:02:46.4]} 7... exf6 {[%clk 0:02:42.1]} 8. Be2 {[%clk
0:02:40.2]} 8... d5 {[%clk 0:02:41.7]} 9. a3 {[%clk 0:02:32.3]} 9... Bxa3 {[%clk
0:02:27]} 10. Ra1 {[%clk 0:02:26.8]} 10... Bxb2 {[%clk 0:02:27.1]} 11. Rxa5
{[%clk 0:02:24.8]} 11... Bxc3+ {[%clk 0:02:27.4]} 12. Kf1 {[%clk 0:02:24.9]}
12... Bxa5 {[%clk 0:02:27.4]} 13. h3 {[%clk 0:02:10.8]} 13... Be6 {[%clk
0:02:25.4]} 14. g4 {[%clk 0:02:09.2]} 14... O-O {[%clk 0:02:24.4]} 15. Qd3
{[%clk 0:02:08.5]} 15... b5 {[%clk 0:02:22.8]} 16. Kg2 {[%clk 0:02:08.5]} 16...
Nd7 {[%clk 0:02:20.6]} 17. Nd2 {[%clk 0:01:54.6]} 17... Bxd2 {[%clk 0:02:18.6]}
18. Qxd2 {[%clk 0:01:53.9]} 18... a5 {[%clk 0:02:19.5]} 19. Ra1 {[%clk
0:01:44.9]} 19... a4 {[%clk 0:02:17.9]} 20. Qb4 {[%clk 0:01:42.8]} 20... Rfc8
{[%clk 0:02:14.9]} 21. Bd3 {[%clk 0:01:37]} 21... Nb6 {[%clk 0:02:08.4]} 22. f4
{[%clk 0:01:35.1]} 22... Bd7 {[%clk 0:02:05.2]} 23. Ra2 {[%clk 0:01:29.1]} 23...
Nc4 {[%clk 0:01:56.8]} 24. Kf3 {[%clk 0:01:26.3]} 24... g6 {[%clk 0:01:52.9]}
25. c3 {[%clk 0:01:25]} 25... Re8 {[%clk 0:01:51.7]} 26. Bxc4 {[%clk 0:01:19.2]}
26... dxc4 {[%clk 0:01:51.5]} 27. Qd6 {[%clk 0:01:07.7]} 27... Rad8 {[%clk
0:01:46.8]} 28. Qxf6 {[%clk 0:00:59.2]} 28... Be6 {[%clk 0:01:43.5]} 29. e4
{[%clk 0:00:55]} 29... Rd6 {[%clk 0:01:43.2]} 30. Qe5 {[%clk 0:00:52.7]} 30...
Bxg4+ {[%clk 0:01:41.1]} 31. hxg4 {[%clk 0:00:52.6]} 31... Rxe5 {[%clk
0:01:41.3]} 32. fxe5 {[%clk 0:00:52.5]} 32... Rd8 {[%clk 0:01:40.6]} 33. Ke3
{[%clk 0:00:48.8]} 33... g5 {[%clk 0:01:37.9]} 34. Ra1 {[%clk 0:00:45.1]} 34...
h6 {[%clk 0:01:37.5]} 35. Rh1 {[%clk 0:00:37.4]} 35... Kg7 {[%clk 0:01:37]} 36.
Ra1 {[%clk 0:00:37]} 36... c5 {[%clk 0:01:32.2]} 37. dxc5 {[%clk 0:00:33.9]}
37... Kf8 {[%clk 0:01:30.6]} 38. Rb1 {[%clk 0:00:33]} 38... Rd3+ {[%clk
0:00:40.4]} 39. Ke2 {[%clk 0:00:32.9]} 39... Rxc3 {[%clk 0:00:36.1]} 40. Rxb5
{[%clk 0:00:33.5]} 40... Ke7 {[%clk 0:00:36.1]} 41. Rb6 {[%clk 0:00:30]} 41...
Rb3 {[%clk 0:00:31.2]} 42. Rxh6 {[%clk 0:00:28.3]} 42... Rb5 {[%clk 0:00:29.3]}
43. Ra6 {[%clk 0:00:24.2]} 43... Rxc5 {[%clk 0:00:28.8]} 44. Ke3 {[%clk
0:00:21.3]} 44... c3 {[%clk 0:00:28.5]} 45. Kd4 {[%clk 0:00:17]} 45... c2 {[%clk
0:00:28.7]} 46. Kxc5 {[%clk 0:00:13.6]} 46... c1=Q+ {[%clk 0:00:29]} 47. Kd5
{[%clk 0:00:12.4]} 47... Qd1+ {[%clk 0:00:29.2]} 48. Kc5 {[%clk 0:00:11.2]}
48... Qc2+ {[%clk 0:00:28.1]} 49. Kb4 {[%clk 0:00:09.4]} 49... Qb3+ {[%clk
0:00:27.6]} 50. Ka5 {[%clk 0:00:09.1]} 50... a3 {[%clk 0:00:26]} 51. Ra7+ {[%clk
0:00:06.3]} 51... Ke6 {[%clk 0:00:26]} 52. Ra6+ {[%clk 0:00:02.7]} 52... Kxe5
{[%clk 0:00:25.9]} 53. Ra7 {[%clk 0:00:02]} 53... a2 {[%clk 0:00:25.5]} 54. Re7+
{[%clk 0:00:02.5]} 54... Kd6 {[%clk 0:00:25]} 0-1

[Event "*** Titled Tuesday Blitz"]
[Site "Chess.com"]
[Date "2021.04.27"]
[Round "3"]
[White "gxbg2000"]
[Black "Jenia84"]
[Result "1/2-1/2"]
[WhiteElo "1962"]
[BlackElo "2344"]
[TimeControl "180+1"]
[EndTime "10:28:44 PDT"]
[Termination "Game drawn by repetition"]

1. e4 {[%clk 0:03:00.9]} 1... e5 {[%clk 0:02:58.6]} 2. Nf3 {[%clk 0:02:52.8]}
2... Nc6 {[%clk 0:02:57.4]} 3. Bc4 {[%clk 0:02:52.6]} 3... Bc5 {[%clk
0:02:56.6]} 4. c3 {[%clk 0:02:52.6]} 4... Nf6 {[%clk 0:02:55.2]} 5. d3 {[%clk
0:02:52.3]} 5... O-O {[%clk 0:02:53.2]} 6. h3 {[%clk 0:02:52.5]} 6... d5 {[%clk
0:02:52.4]} 7. exd5 {[%clk 0:02:44.1]} 7... Nxd5 {[%clk 0:02:52.2]} 8. O-O
{[%clk 0:02:44]} 8... Bf5 {[%clk 0:02:38.6]} 9. Nbd2 {[%clk 0:02:30.5]} 9... Nb6
{[%clk 0:02:35.6]} 10. Qe2 {[%clk 0:02:25.1]} 10... Nxc4 {[%clk 0:02:32]} 11.
dxc4 {[%clk 0:02:23.3]} 11... Bd3 {[%clk 0:02:31]} 12. Qe1 {[%clk 0:02:21]}
12... e4 {[%clk 0:02:07]} 13. Nxe4 {[%clk 0:02:16]} 13... Re8 {[%clk 0:02:06.3]}
14. Nfd2 {[%clk 0:02:11.3]} 14... f5 {[%clk 0:01:58.8]} 15. Nxc5 {[%clk
0:02:06.9]} 15... Rxe1 {[%clk 0:01:54.9]} 16. Rxe1 {[%clk 0:02:07]} 16... b6
{[%clk 0:01:42.3]} 17. Ne6 {[%clk 0:01:43.6]} 17... Qd6 {[%clk 0:01:28.7]} 18.
c5 {[%clk 0:01:03.4]} 18... bxc5 {[%clk 0:01:22.6]} 19. Nb3 {[%clk 0:01:02.6]}
19... c4 {[%clk 0:01:10]} 20. Nbc5 {[%clk 0:01:01]} 20... Re8 {[%clk 0:00:55.9]}
21. g3 {[%clk 0:00:46.9]} 21... Ne5 {[%clk 0:00:32.5]} 22. Bf4 {[%clk
0:00:46.3]} 22... Nf3+ {[%clk 0:00:28.7]} 23. Kg2 {[%clk 0:00:45.6]} 23... Nxe1+
{[%clk 0:00:25.7]} 24. Rxe1 {[%clk 0:00:44.3]} 24... Qd5+ {[%clk 0:00:20.2]} 25.
f3 {[%clk 0:00:43.3]} 25... Qc6 {[%clk 0:00:17.3]} 26. Bxc7 {[%clk 0:00:34.3]}
26... Qb5 {[%clk 0:00:17]} 27. b4 {[%clk 0:00:23.5]} 27... cxb3 {[%clk
0:00:16.4]} 28. axb3 {[%clk 0:00:23.8]} 28... Bc2 {[%clk 0:00:11.8]} 29. b4
{[%clk 0:00:22.2]} 29... Qc4 {[%clk 0:00:11.3]} 30. Be5 {[%clk 0:00:22]} 30...
Rxe6 {[%clk 0:00:09.9]} 31. Nxe6 {[%clk 0:00:21.7]} 31... Qxe6 {[%clk
0:00:10.8]} 32. Kf2 {[%clk 0:00:21.8]} 32... Qa2 {[%clk 0:00:11.2]} 33. Re2
{[%clk 0:00:21.1]} 33... Bb3 {[%clk 0:00:12.1]} 34. Rxa2 {[%clk 0:00:20.4]}
34... Bxa2 {[%clk 0:00:13]} 35. Ke3 {[%clk 0:00:20.5]} 35... Bc4 {[%clk
0:00:13.5]} 36. Kf4 {[%clk 0:00:21.4]} 36... g6 {[%clk 0:00:12.1]} 37. g4 {[%clk
0:00:22]} 37... Kf7 {[%clk 0:00:12.7]} 38. g5 {[%clk 0:00:22]} 38... Ke6 {[%clk
0:00:12.3]} 39. h4 {[%clk 0:00:22.6]} 39... a6 {[%clk 0:00:12.4]} 40. Bd4 {[%clk
0:00:23]} 40... Bb5 {[%clk 0:00:10.9]} 41. Ke3 {[%clk 0:00:23.2]} 41... Kd5
{[%clk 0:00:11.1]} 42. f4 {[%clk 0:00:23.7]} 42... Bc4 {[%clk 0:00:11.3]} 43.
Kd2 {[%clk 0:00:24.1]} 43... Bb5 {[%clk 0:00:11.8]} 44. Ke3 {[%clk 0:00:24.5]}
44... Kc4 {[%clk 0:00:11.8]} 45. Bg7 {[%clk 0:00:24.9]} 45... Bc6 {[%clk
0:00:11.8]} 46. Bf6 {[%clk 0:00:25]} 46... Be4 {[%clk 0:00:11.7]} 47. Bg7 {[%clk
0:00:25.3]} 47... Kb3 {[%clk 0:00:11.9]} 48. Kd4 {[%clk 0:00:23.2]} 48... Bc6
{[%clk 0:00:11.1]} 49. Kc5 {[%clk 0:00:23]} 49... Bb5 {[%clk 0:00:11.1]} 50. Kb6
{[%clk 0:00:22.9]} 50... Kc4 {[%clk 0:00:11.1]} 51. Bf6 {[%clk 0:00:21.2]} 51...
Kd5 {[%clk 0:00:11.2]} 52. Be5 {[%clk 0:00:21.1]} 52... Kc4 {[%clk 0:00:10.9]}
53. Kc7 {[%clk 0:00:19.9]} 53... Kd5 {[%clk 0:00:11]} 54. Kb6 {[%clk 0:00:20]}
54... Kc4 {[%clk 0:00:10.9]} 55. Bf6 {[%clk 0:00:19.2]} 55... Kd5 {[%clk
0:00:10.9]} 56. Be5 {[%clk 0:00:19]} 1/2-1/2